bitfinex-derivatives/quotes_SOLF0:USTF0_20220104
["timestamp","ask_amount","ask_price","bid_price","bid_amount"]
[1641330055941,15.25785677,168.62,168.58,4.18029724]
[1641330056442,2.71696504,168.62,168.59,4.18009357]
[1641330057241,40.20568173,168.63,168.57,36.1869]
[1641330057643,40.20568173,168.63,168.56,27.66479]
[1641330058042,40.20568173,168.63,168.59,4.18007637]
[1641330058243,2.71756838,168.62,168.59,4.18007637]
[1641330059045,40.20568173,168.63,168.58,4.18030504]
[1641330059244,12.54089173,168.62,168.58,4.18030504]
[1641330060445,12.54089173,168.62,168.56,27.66479]
[1641330060648,2.71749845,168.62,168.59,4.1800181]
[1641330061048,40.20568173,168.63,168.58,4.17999288]
[1641330061248,12.54089173,168.62,168.58,4.17999288]
[1641330061949,27.66479,168.63,168.56,27.66479]
[1641330062147,2.7174757,168.62,168.56,27.66479]
[1641330062549,2.7174757,168.62,168.57,3.0]
[1641330062750,12.5399722,168.62,168.58,4.17999073]
[1641330063349,2.7174537,168.62,168.58,1.4625271]
[1641330064449,12.52490542,168.64,168.58,4.17496847]
[1641330064650,12.52490542,168.64,168.58,41.33276847]
[1641330065149,12.52490542,168.64,168.58,37.1578]
[1641330066151,12.52490542,168.64,168.58,41.33275517]
[1641330066754,12.52490542,168.64,168.59,5.63570631]
[1641330067752,12.52490542,168.64,168.59,27.66479]
[1641330068453,4.17513095,168.6,168.59,27.66479]
[1641330068652,1e-08,168.6,168.59,27.66479]
[1641330069255,12.52490542,168.63,168.59,27.66479]
[1641330069455,15.23900895,168.65,168.59,29.16316502]
[1641330069655,15.23900895,168.65,168.59,1.49837502]
[1641330069857,15.23900895,168.65,168.58,37.1578]
[1641330070055,12.52490542,168.63,168.58,37.1578]
[1641330071659,12.52490542,168.62,168.58,37.1578]
[1641330071862,16.82790542,168.62,168.56,27.66479]
[1641330072561,2.71410353,168.61,168.57,1.50003376]
[1641330073161,4.303,168.62,168.57,1.50003376]
[1641330073962,2.67997964,168.61,168.57,1.50003376]
[1641330075267,16.82790542,168.62,168.57,1.50003376]
[1641330076268,4.303,168.62,168.57,1.50003376]
[1641330076468,2.68013691,168.61,168.57,1.50003376]
[1641330077269,4.303,168.62,168.57,1.50003376]
[1641330077469,12.54049767,168.63,168.57,1.50003376]
[1641330077971,2.68064566,168.61,168.57,4.50003376]
[1641330078770,12.54049767,168.63,168.57,4.50003376]
[1641330078970,12.54049767,168.64,168.58,1.50003376]
[1641330079571,12.54049767,168.64,168.57,23.82570091]
[1641330080273,12.60208522,168.65,168.58,1.50003376]
[1641330080973,12.54061936,168.64,168.58,1.50003376]
[1641330081774,12.60208522,168.65,168.58,1.50003376]
[1641330081977,12.54120327,168.63,168.57,1.50003376]
[1641330082575,12.60208522,168.65,168.57,1.50003376]
[1641330083378,12.5411612,168.63,168.57,1.50003376]
[1641330083881,12.5411612,168.63,168.59,27.66479]
[1641330084682,12.5411612,168.63,168.59,34.29879]
[1641330085082,15.22146043,168.65,168.6,1.50003376]
[1641330085886,15.22146043,168.65,168.62,27.66479]
[1641330086183,12.61217496,168.68,168.62,27.66479]
[1641330086983,12.50415218,168.67,168.62,27.66479]
[1641330089687,12.50415218,168.66,168.62,27.66479]
[1641330090289,12.50415218,168.67,168.62,27.66479]
[1641330091089,15.18386965,168.68,168.62,27.66479]
[1641330092491,12.50415218,168.67,168.62,27.66479]
[1641330093694,12.50415218,168.66,168.62,27.66479]
[1641330094894,12.58448511,168.68,168.62,27.66479]
[1641330095095,12.58448511,168.68,168.63,1.50012859]
[1641330095494,12.53902652,168.67,168.63,1.50012859]
[1641330097998,12.53902652,168.67,168.59,40.20359777]
[1641330098197,12.53902652,168.66,168.59,27.66479]
[1641330098397,12.53902652,168.66,168.59,30.66479]
[1641330099296,12.53902652,168.66,168.6,1.50014545]
[1641330099900,12.58448511,168.68,168.6,1.50014545]
[1641330100598,12.53920005,168.66,168.6,1.50014545]
[1641330102504,12.58448511,168.68,168.6,1.50014545]
[1641330103005,12.53878591,168.66,168.6,1.50014545]
[1641330103204,17.29178591,168.66,168.6,1.50014545]
[1641330103805,2.67971747,168.65,168.6,1.50014545]
[1641330105206,17.29193929,168.66,168.6,1.50014545]
[1641330105806,2.67974319,168.65,168.6,1.50014545]
[1641330106507,17.29193929,168.66,168.6,1.50014545]
[1641330107308,2.67975631,168.65,168.6,1.50014545]
[1641330108008,12.53893929,168.66,168.6,1.50014545]
[1641330108609,3.0,168.64,168.6,4.545e-05]
[1641330108808,3.0,168.64,168.59,27.66479]
[1641330108809,9.22,168.64,168.59,27.66479]
[1641330109011,6.22,168.64,168.59,12.53880777]
[1641330109210,9.22,168.64,168.59,12.53880777]
[1641330109409,6.22,168.64,168.57,27.66479]
[1641330110810,16.19221733,168.64,168.57,20.97598451]
[1641330111110,6.22,168.64,168.57,20.97598451]
[1641330113813,36.2006,168.65,168.57,20.97598451]
[1641330117119,10.27069555,168.64,168.57,20.97598451]
[1641330120927,36.2006,168.65,168.57,20.97598451]
[1641330121124,36.2006,168.65,168.57,26.18898451]
[1641330122026,27.66479,168.64,168.57,26.18898451]
[1641330124829,36.51779,168.64,168.57,20.97598451]
[1641330125029,33.51779,168.64,168.57,20.97598451]
[1641330125628,33.51779,168.64,168.55,36.0889]
[1641330126331,10.11241303,168.63,168.55,36.0889]
[1641330129236,13.11241303,168.63,168.54,27.66479]
[1641330129735,10.11241303,168.63,168.56,4.1809132]
[1641330129934,3.0,168.6,168.56,4.1809132]
[1641330130136,30.66479,168.58,168.49,33.22351558]
[1641330130338,27.66479,168.58,168.49,33.22351558]
[1641330130538,27.66479,168.58,168.46,33.22351558]
[1641330130737,30.66479,168.58,168.46,33.22351558]
[1641330130939,27.66479,168.58,168.46,33.22351558]
[1641330131637,27.66479,168.58,168.46,6.51064352]
[1641330131638,10.11241303,168.57,168.46,6.51064352]
[1641330132236,27.66479,168.53,168.45,27.66479]
[1641330135139,33.38079,168.53,168.45,27.66479]
[1641330136041,33.38079,168.53,168.44,43.9965]
[1641330136240,27.66479,168.53,168.44,43.9965]
[1641330136441,27.66479,168.54,168.44,43.9965]
[1641330136842,36.11,168.53,168.44,43.9965]
[1641330137443,27.66479,168.54,168.44,46.9965]
[1641330137644,3.0,168.61,168.44,46.9965]
[1641330137846,35.9295,168.6,168.44,46.9965]
[1641330138144,27.66479,168.57,168.47,27.66479]
[1641330138344,27.66479,168.57,168.47,33.68079]
[1641330138544,34.7523,168.56,168.48,36.4624]
[1641330141949,34.7523,168.56,168.49,18.95094581]
[1641330143650,34.7523,168.56,168.49,12.44946762]
[1641330143852,34.7523,168.56,168.48,36.4624]
[1641330144451,34.7523,168.56,168.48,48.91186762]
[1641330145352,34.7523,168.56,168.48,36.4624]
[1641330147654,34.7523,168.56,168.48,48.91186762]
[1641330149961,2.7819838,168.55,168.49,1.39405208]
[1641330153061,15.23145142,168.55,168.49,1.39405208]
[1641330153262,18.23145142,168.55,168.49,1.39405208]
[1641330154163,15.23145142,168.55,168.49,1.39405208]
[1641330154362,2.7819838,168.54,168.49,1.39405208]
[1641330157464,15.23145142,168.55,168.49,1.39405208]
[1641330161469,15.23145142,168.55,168.49,6.65505208]
[1641330162672,12.44946762,168.54,168.5,1.39405208]
[1641330164674,12.44946762,168.54,168.49,1.39405208]
[1641330165975,12.44946762,168.54,168.48,36.4624]
[1641330166177,2.7819838,168.55,168.48,36.4624]
[1641330166377,27.66479,168.54,168.48,36.4624]
[1641330166676,2.7819838,168.53,168.48,36.4624]
[1641330168077,2.7819838,168.53,168.43,40.11425762]
[1641330168280,36.4435,168.52,168.44,35.9993]
[1641330169281,2.7819838,168.51,168.45,1.39187491]
[1641330169882,36.4435,168.52,168.45,1.39187491]
[1641330171883,2.78688656,168.51,168.45,20.35206762]
[1641330172684,12.44946762,168.53,168.45,20.35206762]
[1641330173687,12.44946762,168.53,168.45,26.75606762]
[1641330174189,2.78671344,168.53,168.46,12.44946762]
[1641330174790,40.11425762,168.54,168.46,12.44946762]
[1641330174990,40.11425762,168.54,168.46,13.84134253]
[1641330175693,2.78688924,168.53,168.46,12.44946762]
[1641330175893,2.78688924,168.53,168.46,17.49146762]
[1641330176392,40.11425762,168.54,168.47,1.39187491]
[1641330177094,2.78688717,168.53,168.47,1.39187491]
[1641330177693,40.11425762,168.54,168.46,12.44946762]
[1641330178694,2.78695433,168.53,168.46,12.44946762]
[1641330179394,40.11425762,168.54,168.46,12.44946762]
[1641330179994,27.66479,168.54,168.46,12.44946762]
[1641330180194,2.78683772,168.53,168.46,12.44946762]
[1641330180998,40.21279736,168.54,168.46,12.44946762]
[1641330181697,12.54800736,168.52,168.45,1.39187491]
[1641330182301,2.78714437,168.53,168.46,12.44946762]
[1641330183300,40.21263548,168.54,168.46,12.44946762]
[1641330184001,2.78671671,168.53,168.46,12.44946762]
[1641330184400,40.21263548,168.54,168.46,12.44946762]
[1641330184602,40.21263548,168.54,168.46,40.11425762]
[1641330185603,2.78653132,168.53,168.47,20.35205273]
[1641330186203,27.66479,168.54,168.47,20.35205273]
[1641330187204,2.78639585,168.53,168.47,20.35205273]
[1641330187804,27.66479,168.54,168.48,12.44946762]
[1641330188603,2.78632455,168.53,168.48,12.44946762]
[1641330190209,38.4124,168.56,168.48,12.44946762]
[1641330190409,2.78631451,168.55,168.52,4.18225007]
[1641330190611,2.78631451,168.55,168.52,8.59425007]
[1641330190909,50.95915021,168.56,168.52,4.412]
[1641330191510,50.95915021,168.56,168.52,8.59423145]
[1641330191711,2.78629217,168.55,168.52,8.59423145]
[1641330192412,50.95915021,168.56,168.52,4.412]
[1641330193214,2.78640424,168.55,168.52,8.59413739]
[1641330193815,50.95915021,168.56,168.52,4.412]
[1641330194516,2.78631603,168.55,168.52,8.59406387]
[1641330195215,50.95859094,168.56,168.52,4.412]
[1641330195816,50.95859094,168.56,168.48,50.19366762]
[1641330196016,2.78631303,168.55,168.52,4.18206137]
[1641330196217,2.78631303,168.55,168.52,10.15806137]
[1641330196619,38.4124,168.56,168.52,5.976]
[1641330196819,50.95855629,168.56,168.52,5.976]
[1641330197620,2.7863016,168.55,168.48,50.19366762]
[1641330198019,2.7863016,168.55,168.51,4.18204197]
[1641330198818,2.7863016,168.55,168.52,4.18204197]
[1641330204924,2.7863016,168.55,168.53,4.18204197]
[1641330205524,2.7863016,168.55,168.53,5.63152076]
[1641330208227,2.7863016,168.55,168.53,4.18204197]
[1641330211434,2.7863016,168.55,168.53,5.63152076]
[1641330211632,12.54615629,168.57,168.54,7.0]
[1641330211833,0.01357195,168.57,168.54,4.0]
[1641330212033,33.22351558,168.61,168.56,3.0]
[1641330212236,33.22351558,168.61,168.58,3.0]
[1641330212438,12.54281251,168.61,168.57,4.0]
[1641330212635,12.54281251,168.61,168.6,27.66479]
[1641330212837,12.54281251,168.61,168.6,32.43679]
[1641330213440,36.7183,168.68,168.6,32.43679]
[1641330215043,10.07058164,168.67,168.62,4.17977863]
[1641330216044,36.7183,168.68,168.63,4.17977863]
[1641330216243,60.88830558,168.7,168.63,4.17977863]
[1641330216646,9.69798189,168.69,168.63,4.17977863]
[1641330219346,12.69798189,168.69,168.63,4.17977863]
[1641330219546,9.69798189,168.69,168.63,4.17977863]
[1641330220151,9.69798189,168.69,168.59,27.66479]
[1641330220152,42.92149747,168.69,168.61,4.17977863]
[1641330220353,3.0,168.68,168.61,4.17977863]
[1641330220553,3.0,168.67,168.61,4.17977863]
[1641330220753,30.66479,168.67,168.61,4.17977863]
[1641330221355,30.66479,168.67,168.57,8.94]
[1641330221553,67.08669,168.67,168.57,8.94]
[1641330227457,4.14366934,168.66,168.57,8.94]
[1641330228861,71.23035934,168.67,168.57,8.94]
[1641330231969,9.69967132,168.66,168.61,4.17977863]
[1641330242277,67.08669,168.67,168.61,4.17977863]
[1641330242478,12.53846527,168.66,168.62,4.17977863]
[1641330245480,17.05846527,168.66,168.62,4.17977863]
[1641330246683,12.53846527,168.65,168.61,4.17977863]
[1641330248784,4.17976645,168.62,168.61,4.17977863]
[1641330251789,12.53846527,168.65,168.61,4.17977863]
[1641330251991,45.92112711,168.69,168.6,5.76748166]
[1641330251992,12.53846527,168.64,168.6,5.76748166]
[1641330253690,15.13097951,168.66,168.62,4.17977863]
[1641330254692,12.53846527,168.65,168.61,4.17977863]
[1641330255090,12.53846527,168.65,168.62,4.17977863]
[1641330256292,12.53846527,168.65,168.61,4.17977863]
[1641330259196,12.29168038,168.66,168.61,4.17977863]
[1641330260096,12.5397291,168.65,168.61,4.17977863]
[1641330260498,12.29168038,168.66,168.61,4.17977863]
[1641330261500,12.54147192,168.65,168.61,4.17977863]
[1641330263300,12.54147192,168.65,168.62,4.17977863]
[1641330263501,15.13398616,168.66,168.62,4.17977863]
[1641330265303,2.59251424,168.66,168.63,4.17977863]
[1641330265802,12.54147192,168.66,168.62,4.17977863]
[1641330266904,2.58934083,168.66,168.62,4.17977863]
[1641330267604,12.54147192,168.68,168.62,4.17977863]
[1641330269305,4.17501198,168.65,168.63,4.17977863]
[1641330270206,15.13074255,168.69,168.63,4.17977863]
[1641330270906,4.17481145,168.66,168.64,4.17977863]
[1641330271708,2.58927063,168.69,168.64,4.17977863]
[1641330271907,2.58927063,168.69,168.64,8.84777863]
[1641330272609,2.58927063,168.69,168.66,4.17977863]
[1641330273409,77.48056192,168.7,168.66,4.17977863]
[1641330273709,40.20626192,168.7,168.66,4.17977863]
[1641330274410,2.5915288,168.69,168.66,4.17977863]
[1641330275211,40.20626192,168.7,168.66,4.17977863]
[1641330275910,2.59136549,168.69,168.66,4.17977863]
[1641330276610,40.20266923,168.7,168.66,4.17977863]
[1641330277613,2.59147774,168.69,168.66,4.17977863]
[1641330278815,27.66479,168.7,168.66,4.17977863]
[1641330279017,40.20291774,168.7,168.66,4.17977863]
[1641330279718,15.12978467,168.69,168.65,4.17977863]
[1641330283717,12.53812774,168.7,168.66,4.17977863]
[1641330284719,12.28781363,168.73,168.66,4.17977863]
[1641330285121,12.53723211,168.71,168.67,4.17977863]
[1641330286122,12.53723211,168.71,168.68,3.0]
[1641330286323,12.53723211,168.71,168.68,9.699]
[1641330286523,12.28781363,168.73,168.7,7.0]
[1641330286724,33.22351558,168.74,168.71,3.0]
[1641330286924,33.22351558,168.8,168.71,3.0]
[1641330287125,33.22351558,168.8,168.7,7.0]
[1641330287324,33.22351558,168.8,168.71,27.66479]
[1641330288126,11.80604885,168.82,168.71,27.66479]
[1641330288326,11.80604885,168.82,168.71,30.66479]
[1641330288826,11.80604885,168.82,168.71,27.66479]
[1641330289327,4.15544041,168.77,168.71,27.66479]
[1641330289928,11.80604885,168.82,168.71,27.66479]
[1641330290629,11.80604885,168.82,168.75,3.0]
[1641330290833,4.15557353,168.77,168.75,8.462]
[1641330291230,4.15557353,168.77,168.75,36.12679]
[1641330291529,4.15557353,168.77,168.75,33.12679]
[1641330291932,4.15557353,168.78,168.75,33.12679]
[1641330293032,2.46419314,168.82,168.75,33.12679]
[1641330293232,4.15546341,168.77,168.75,33.12679]
[1641330293934,2.46419314,168.82,168.75,33.12679]
[1641330294135,4.15536238,168.78,168.75,33.12679]
[1641330295336,2.46419314,168.82,168.75,33.12679]
[1641330295537,4.15546454,168.77,168.75,33.12679]
[1641330296137,33.22351558,168.81,168.75,33.12679]
[1641330297036,45.0274514,168.82,168.75,33.12679]
[1641330299442,33.22351558,168.81,168.75,33.12679]
[1641330299639,37.55651558,168.81,168.75,5.462]
[1641330299840,37.55651558,168.81,168.74,4.17977863]
[1641330300641,2.46419314,168.8,168.74,4.17977863]
[1641330301343,2.46419314,168.8,168.75,4.17977863]
[1641330302341,11.80393582,168.82,168.76,4.17977863]
[1641330303044,3.0,168.81,168.75,4.17977863]
[1641330303248,27.66479,168.8,168.75,4.17977863]
[1641330303545,30.12898314,168.8,168.73,4.17977863]
[1641330304948,11.80393582,168.79,168.73,4.17977863]
[1641330305549,11.80393582,168.79,168.72,4.17977863]
[1641330305749,14.80393582,168.79,168.72,4.17977863]
[1641330306150,3.0,168.77,168.72,4.17977863]
[1641330306353,8.669,168.77,168.72,4.17977863]
[1641330306650,8.669,168.77,168.71,4.17977863]
[1641330306851,5.669,168.77,168.71,4.17977863]
[1641330307252,27.66479,168.76,168.71,4.17977863]
[1641330307653,30.12898314,168.76,168.7,4.17977863]
[1641330308554,11.80393582,168.75,168.7,4.17977863]
[1641330309154,5.46419314,168.75,168.68,4.17977863]
[1641330309354,27.66479,168.73,168.68,4.17977863]
[1641330309556,32.85979,168.73,168.68,4.17977863]
[1641330310862,32.85979,168.73,168.67,5.88072383]
[1641330311063,2.46419314,168.72,168.67,4.17977863]
[1641330311564,32.85979,168.73,168.67,4.17977863]
[1641330311765,32.85979,168.73,168.66,4.17977863]
[1641330312769,2.47309031,168.72,168.66,4.17977863]
[1641330313368,2.47309031,168.72,168.63,1.7009452]
[1641330313369,2.47309031,168.72,168.67,4.17977863]
[1641330315169,2.47309031,168.72,168.66,4.17977863]
[1641330316170,2.47309031,168.72,168.69,4.17977863]
[1641330317070,27.66479,168.73,168.7,4.17977863]
[1641330318273,2.47670736,168.72,168.7,4.17977863]
[1641330319276,12.53273475,168.74,168.7,4.17977863]
[1641330319476,12.53273475,168.74,168.7,10.78677863]
[1641330319876,2.47652351,168.74,168.71,5.88072383]
[1641330320676,12.53248286,168.76,168.72,4.17977863]
[1641330321576,15.00824745,168.77,168.73,4.17977863]
[1641330322382,27.66479,168.78,168.73,4.17977863]
[1641330322876,2.47564248,168.77,168.74,4.17977863]
[1641330323079,2.47564248,168.77,168.74,8.37477863]
[1641330323876,40.19507029,168.78,168.74,8.37477863]
[1641330324276,12.53028029,168.78,168.74,8.37477863]
[1641330324676,15.00496467,168.8,168.77,4.17977863]
[1641330325680,35.6641,168.83,168.76,4.17977863]
[1641330326780,12.52824775,168.8,168.76,5.88105593]
[1641330327880,11.85837113,168.82,168.76,5.88105593]
[1641330328981,12.52843553,168.79,168.76,5.88105593]
[1641330329582,12.52746135,168.81,168.77,4.17977863]
[1641330330583,15.00227693,168.82,168.78,4.17977863]
[1641330330783,15.00227693,168.82,168.78,9.87277863]
[1641330331583,12.52746135,168.81,168.78,5.693]
[1641330331983,12.52746135,168.81,168.79,3.0]
[1641330332183,9.3825662,168.84,168.8,3.0]
[1641330332383,9.3825662,168.84,168.81,3.0]
[1641330332384,12.52564918,168.84,168.81,3.0]
[1641330332583,12.52564918,168.84,168.81,7.0]
[1641330332784,12.52564918,168.84,168.82,3.0]
[1641330332986,9.3825662,168.85,168.82,7.689]
[1641330333387,33.22351558,168.87,168.84,27.66479]
[1641330333584,33.22351558,168.91,168.84,27.66479]
[1641330334685,2.36036561,168.93,168.89,4.17977863]
[1641330335988,2.36036561,168.93,168.85,5.88120499]
[1641330336188,2.36036561,168.92,168.85,5.88120499]
[1641330336787,33.22351558,168.92,168.85,5.88120499]
[1641330338191,35.58388119,168.93,168.86,4.17977863]
[1641330338994,2.36036561,168.93,168.86,9.35377863]
[1641330339993,35.58388119,168.93,168.86,5.174]
[1641330340193,38.58388119,168.93,168.86,5.174]
[1641330340393,35.58388119,168.93,168.86,5.174]
[1641330340995,2.36036561,168.92,168.89,4.17977863]
[1641330341695,2.16260219,168.91,168.89,4.17977863]
[1641330342497,2.16257836,168.93,168.89,4.17977863]
[1641330343198,27.66479,168.94,168.89,4.17977863]
[1641330343799,2.16268294,168.93,168.89,4.17977863]
[1641330344301,2.16268294,168.93,168.9,4.17977863]
[1641330344900,27.66479,168.94,168.9,4.17977863]
[1641330346102,2.16261239,168.93,168.89,4.17977863]
[1641330347305,27.66479,168.94,168.89,4.17977863]
[1641330347503,27.66479,168.94,168.91,4.17977863]
[1641330348203,2.16242978,168.93,168.91,4.17977863]
[1641330348804,4.17367933,168.92,168.91,4.17977863]
[1641330349404,2.16241155,168.93,168.91,4.17977863]
[1641330349604,3.0,168.92,168.91,4.17977863]
[1641330349805,3.0,168.92,168.87,2.01129004]
[1641330350004,3.0,168.91,168.87,2.01129004]
[1641330350207,3.0,168.92,168.84,33.22351558]
[1641330350405,5.16297389,168.92,168.81,33.22351558]
[1641330351206,3.0,168.92,168.81,33.22351558]
[1641330351407,2.16311949,168.91,168.81,35.23473172]
[1641330351607,27.66479,168.89,168.81,35.23473172]
[1641330353607,27.66479,168.89,168.82,33.22351558]
[1641330353808,20.98610427,168.89,168.82,33.22351558]
[1641330354908,20.98610427,168.89,168.81,55.67598329]
[1641330355508,20.98610427,168.89,168.82,3.0]
[1641330355709,36.3418,168.92,168.82,4.618]
[1641330355909,27.66479,168.94,168.82,4.618]
[1641330356108,27.66479,168.94,168.83,3.0]
[1641330356309,27.66479,168.94,168.82,4.618]
[1641330356509,2.20026574,168.91,168.83,2.01121614]
[1641330357109,2.20026574,168.93,168.83,35.23473172]
[1641330357309,2.20026574,168.93,168.84,38.1141]
[1641330357509,2.20026574,168.93,168.87,27.66479]
[1641330357809,2.20026574,168.93,168.87,34.28879]
[1641330358811,2.20026574,168.93,168.88,2.01121614]
[1641330359513,2.20026574,168.93,168.88,10.05699803]
[1641330362316,2.20026574,168.93,168.88,2.01121614]
[1641330363016,5.20026574,168.93,168.88,2.01121614]
[1641330363216,3.0,168.9,168.88,2.01121614]
[1641330363416,5.652,168.9,168.88,2.01121614]
[1641330363617,27.66479,168.89,168.88,2.01121614]
[1641330363818,27.66479,168.89,168.82,22.37830762]
[1641330364018,5.652,168.9,168.82,22.37830762]
[1641330364419,5.652,168.9,168.84,12.49701767]
[1641330365919,5.652,168.9,168.84,2.01121614]
[1641330366520,5.652,168.9,168.85,2.01121614]
[1641330367422,5.652,168.9,168.86,2.01121614]
[1641330368125,2.25617432,168.89,168.81,49.19871767]
[1641330368724,2.25617432,168.89,168.82,22.2963929]
[1641330369325,2.25617432,168.89,168.83,12.49701767]
[1641330373829,2.25617432,168.89,168.82,22.2963929]
[1641330374632,3.0,168.88,168.82,22.2963929]
[1641330375834,2.25617432,168.87,168.82,1.91358531]
[1641330376835,2.25617432,168.87,168.82,14.41060298]
[1641330377036,2.25617432,168.87,168.82,22.29632283]
[1641330378337,76.48840767,168.91,168.83,12.49701767]
[1641330379140,2.25981333,168.9,168.83,12.49701767]
[1641330379543,5.25981333,168.9,168.83,12.49701767]
[1641330379741,2.25981333,168.9,168.83,12.49701767]
[1641330379944,5.25981333,168.9,168.83,12.49701767]
[1641330380441,2.25981333,168.89,168.83,12.49701767]
[1641330381743,2.25981333,168.89,168.83,40.16180767]
[1641330382244,2.25981333,168.9,168.84,1.91358531]
[1641330383044,2.25981333,168.9,168.85,12.49701767]
[1641330383744,12.49701767,168.92,168.85,12.49701767]
[1641330383945,12.49701767,168.93,168.85,12.49701767]
[1641330384747,17.756831,168.94,168.86,12.49701767]
[1641330385549,12.49701767,168.92,168.86,1.91358531]
[1641330386449,2.25981333,168.93,168.86,22.31943323]
[1641330387350,17.756831,168.94,168.86,22.31943323]
[1641330388151,2.25981333,168.93,168.86,22.31943323]
[1641330388352,7.51481333,168.93,168.86,22.31943323]
[1641330388754,20.011831,168.93,168.86,1.91358531]
[1641330389454,2.25981333,168.92,168.86,1.91358531]
[1641330389855,2.25981333,168.92,168.86,29.57837531]
[1641330390255,2.25981333,168.92,168.86,49.98421651]
[1641330390957,2.25981333,168.92,168.87,1.91358531]
[1641330391557,2.25981333,168.92,168.87,22.31940272]
[1641330392363,14.756831,168.94,168.87,22.31940272]
[1641330393362,14.756831,168.94,168.87,1.91358531]
[1641330397164,17.756831,168.94,168.87,1.91358531]
[1641330397564,14.756831,168.93,168.87,1.91358531]
[1641330397765,19.103831,168.93,168.87,1.91358531]
[1641330398166,2.25981333,168.92,168.87,1.91358531]
[1641330398566,5.25981333,168.92,168.87,1.91358531]
[1641330398768,2.25981333,168.92,168.87,1.91358531]
[1641330406277,2.25981333,168.92,168.86,1.91358531]
[1641330407680,14.756831,168.92,168.86,1.91358531]
[1641330408181,12.49701767,168.92,168.86,1.91358531]
[1641330411283,4.17261627,168.89,168.88,4.17261627]
[1641330414682,2.25981333,168.93,168.88,4.17261627]
[1641330414884,3.0,168.92,168.88,4.17261627]
[1641330415184,4.17263615,168.89,168.88,4.17261627]
[1641330415784,11.78178701,168.94,168.86,1.91358531]
[1641330415984,2.25004471,168.93,168.86,1.91358531]
[1641330416686,12.51954081,168.92,168.89,4.17318027]
[1641330416884,12.51954081,168.92,168.89,10.42718027]
[1641330417085,2.25004471,168.93,168.91,4.17318027]
[1641330417385,14.76839355,168.94,168.91,4.17318027]
[1641330418086,78.62592444,168.95,168.91,4.17318027]
[1641330418488,40.18292444,168.95,168.91,4.17318027]
[1641330419190,43.18292444,168.95,168.91,4.17318027]
[1641330419689,40.18292444,168.95,168.9,6.08676558]
[1641330419890,14.76788674,168.94,168.9,4.17318027]
[1641330420290,12.51813444,168.95,168.91,4.17318027]
[1641330421291,11.02952889,168.96,168.91,4.17318027]
[1641330421990,12.51759784,168.95,168.91,4.17318027]
[1641330422594,11.02952889,168.96,168.91,4.17318027]
[1641330422790,14.02952889,168.96,168.91,4.17318027]
[1641330422990,3.0,168.94,168.91,4.17318027]
[1641330423192,3.0,168.93,168.91,4.17318027]
[1641330423390,3.0,168.94,168.91,4.17318027]
[1641330424094,30.66479,168.94,168.91,4.17318027]
[1641330424994,27.66479,168.94,168.9,1.91358531]
[1641330425193,14.76926784,168.93,168.89,4.17318027]
[1641330425694,2.24995757,168.93,168.9,4.17318027]
[1641330426695,40.18410027,168.94,168.9,4.17318027]
[1641330426897,12.51931027,168.93,168.9,6.08676558]
[1641330427297,27.66479,168.94,168.9,6.08676558]
[1641330427498,2.24986521,168.93,168.89,4.17318027]
[1641330428298,14.76892973,168.93,168.89,4.17318027]
[1641330429796,27.66479,168.94,168.89,4.17318027]
[1641330430398,14.7690558,168.93,168.89,4.17318027]
[1641330433102,2.24940685,168.94,168.91,4.17318027]
[1641330433802,15.51793348,168.95,168.91,4.17318027]
[1641330434902,2.24930331,168.94,168.91,4.17318027]
[1641330435603,15.51793348,168.95,168.91,4.17318027]
[1641330436103,2.24934215,168.94,168.91,4.17318027]
[1641330436905,12.51793348,168.95,168.91,4.17318027]
[1641330438405,14.7671923,168.95,168.91,4.17318027]
[1641330439108,11.78018127,168.96,168.91,4.17318027]
[1641330439707,2.24923434,168.95,168.91,4.17318027]
[1641330439909,14.76673653,168.95,168.91,4.17318027]
[1641330440507,11.78018127,168.96,168.91,4.17318027]
[1641330441209,14.76639755,168.95,168.91,4.17318027]
[1641330442213,11.78018127,168.96,168.91,4.17318027]
[1641330443112,14.76643957,168.95,168.91,4.17318027]
[1641330443715,11.78018127,168.96,168.92,4.17318027]
[1641330443913,8.78018127,168.96,168.92,4.17318027]
[1641330444514,12.51708809,168.95,168.92,4.17318027]
[1641330445316,5.24906869,168.96,168.92,4.17318027]
[1641330445514,14.76607412,168.96,168.92,4.17318027]
[1641330446118,14.76607412,168.96,168.92,6.09634251]
[1641330449818,3.0,169.01,168.92,6.09634251]
[1641330449819,12.51700543,168.97,168.93,4.17318027]
[1641330453820,12.51700543,168.98,168.94,4.17318027]
[1641330455221,2.24906869,168.98,168.94,4.17318027]
[1641330456321,14.76468313,168.98,168.94,4.17318027]
[1641330456721,17.76468313,168.98,168.94,4.17318027]